lending/lending_fUSD_20240509
["ID","MTS","AMOUNT","RATE_DAILY","PERIOD"]
[326740611,1715293854636,-500.0,0.00030229,4]
[326740612,1715293854645,-1353.79,0.00030229,4]
[326740613,1715293854655,-500.0,0.00030229,4]
[326740614,1715293854664,-963.5,0.00030229,4]
[326740615,1715293854674,-155.0,0.00030229,4]
[326740616,1715293854683,-209.14,0.00030289,15]
[326740617,1715293854692,-381.0,0.00030289,15]
[326740618,1715293854703,-967.72822901,0.0003029,2]
[326740619,1715293854712,-173.2667781,0.00030297,7]
[326740620,1715293854722,-5839.74170923,0.00030297,3]
[326740621,1715293854731,-11077.51987251,0.00030297,4]
[326740622,1715293854741,-150.5,0.00030299,15]
[326740623,1715293854751,-381.0,0.00030299,15]
[326740624,1715293854760,-482.34,0.000303,2]
[326740625,1715293854769,-432.45,0.000303,2]
[326740626,1715293854779,-381.0,0.00030309,15]
[326740627,1715293854788,-150.5,0.00030309,15]
[326740628,1715293854798,-711636.55879545,0.00030319,15]
[326740629,1715293854811,-643207.46496999,0.00030319,15]
[326740630,1715293854821,-668094.93709393,0.0003032,30]
[326740631,1715293854843,-0.0094664,0.0003032,30]
[326740632,1715293854855,-479.70535553,0.0003032,30]
[326740633,1715293854866,-3762.41856736,0.0003032,30]
[326740634,1715293854877,-610.55040389,0.0003032,30]
[326740635,1715293854889,-3127.0,0.0003032,30]
[326740636,1715293854901,-977.41381075,0.0003032,30]
[326740637,1715293854913,-2442.31445088,0.0003032,30]
[326740638,1715293854924,-386.42971808,0.0003032,30]
[326740639,1715293854936,-600.0,0.0003032,30]
[326740640,1715293854947,-1179318.332356,0.0003032,30]
[326740641,1715293854959,-37744.52907806,0.0003032,7]
[326740642,1715293854972,-55662.05375864,0.0003032,3]
[326740643,1715293854981,-167127.97861718,0.0003032,7]
[326740644,1715293854990,-500.0,0.00030322,4]
[326740645,1715293854999,-500.0,0.00030322,4]
[326740646,1715293855010,-500.0,0.00030322,4]
[326740647,1715293855020,-500.0,0.00030322,4]
[326740648,1715293855030,-500.0,0.00030322,4]
[326740649,1715293855039,-500.0,0.00030322,4]
[326740650,1715293855050,-500.0,0.00030322,4]
[326740651,1715293855060,-500.0,0.00030322,4]
[326740652,1715293855069,-500.0,0.00030322,4]
[326740653,1715293855078,-500.0,0.00030322,4]
[326740654,1715293855088,-500.0,0.00030322,4]
[326740655,1715293855097,-500.0,0.00030322,4]
[326740656,1715293855107,-500.0,0.00030322,4]
[326740657,1715293855116,-500.0,0.00030322,4]
[326740658,1715293855125,-500.0,0.00030322,4]
[326740659,1715293855135,-329.19,0.000304,2]
[326740660,1715293855144,-500.0,0.0003041,5]
[326740661,1715293855153,-776.52,0.0003041,5]
[326740662,1715293855163,-500.0,0.0003041,5]
[326740663,1715293855173,-500.0,0.0003041,5]
[326740664,1715293855181,-500.0,0.0003041,5]
[326740665,1715293855191,-550.06,0.0003041,5]
[326740666,1715293855200,-500.0,0.0003041,5]
[326740667,1715293855210,-722.94,0.0003041,5]
[326740668,1715293855219,-851.14,0.0003041,5]
[326740669,1715293855228,-500.0,0.0003041,5]
[326740670,1715293855237,-1051.73,0.0003041,5]
[326740671,1715293855246,-779.61,0.0003041,5]
[326740672,1715293855255,-500.0,0.0003041,5]
[326740673,1715293855265,-500.0,0.0003041,5]
[326740674,1715293855274,-764.66,0.0003041,5]
[326740675,1715293855283,-500.0,0.0003041,5]
[326740676,1715293855292,-500.0,0.0003041,5]
[326740677,1715293855301,-500.0,0.0003041,5]
[326740678,1715293855310,-500.0,0.0003041,5]
[326740679,1715293855320,-500.0,0.0003041,2]
[326740680,1715293855329,-500.0,0.0003041,5]
[326740681,1715293855339,-500.0,0.0003041,5]
[326740682,1715293855348,-1054.67,0.0003041,5]
[326740683,1715293855358,-500.0,0.0003041,5]
[326740684,1715293855367,-580.78,0.0003041,5]
[326740685,1715293855377,-663.41,0.0003041,5]
[326740686,1715293855386,-573.15,0.0003041,5]
[326740687,1715293855396,-500.0,0.0003041,5]
[326740688,1715293855405,-500.0,0.0003041,5]
[326740689,1715293855414,-531.77,0.0003041,5]
[326740690,1715293855423,-500.0,0.0003041,5]
[326740691,1715293855433,-781.07,0.0003041,5]
[326740692,1715293855442,-500.0,0.0003041,5]
[326740693,1715293855451,-500.0,0.0003041,5]
[326740694,1715293855461,-500.0,0.0003041,5]
[326740695,1715293855470,-500.0,0.0003041,5]
[326740696,1715293855480,-500.0,0.0003041,5]
[326740697,1715293855490,-500.0,0.0003041,5]
[326740698,1715293855500,-613.88,0.0003041,5]
[326740699,1715293855510,-500.0,0.0003041,5]
[326740700,1715293855519,-500.0,0.0003041,5]
[326740701,1715293855529,-890.68,0.0003041,5]
[326740702,1715293855538,-500.0,0.0003041,5]
[326740703,1715293855547,-1694.75,0.0003041,5]
[326740704,1715293855556,-1091.31,0.0003041,5]
[326740705,1715293855566,-1040.68,0.0003041,5]
[326740706,1715293855575,-1788.86,0.0003041,5]
[326740707,1715293855584,-2000.0,0.0003041,5]
[326740708,1715293855593,-500.0,0.0003041,5]
[326740709,1715293855603,-916.73,0.0003041,5]
[326740710,1715293855611,-1301.4,0.0003041,5]
[326740711,1715293855620,-591.82,0.0003041,5]
[326740712,1715293855629,-1721.76,0.0003041,5]
[326740713,1715293855639,-910.65,0.0003041,5]
[326740714,1715293855648,-2583.35,0.0003041,5]
[326740715,1715293855658,-1555.37,0.0003041,5]
[326740716,1715293855667,-1342.3,0.0003041,5]
[326740717,1715293855677,-2830.82517201,0.00030427,2]
[326740718,1715293855687,-2000.0,0.00030437,2]
[326740719,1715293855696,-200.0,0.00030437,2]
[326740720,1715293855706,-200.0,0.00030437,2]
[326740721,1715293855715,-3382.64,0.000305,5]
[326740722,1715293855724,-2718.02,0.000305,5]
[326740723,1715293855734,-506.2,0.000305,5]
[326740724,1715293855743,-891.39,0.000305,5]
[326740725,1715293855753,-1569.4,0.000305,5]
[326740726,1715293855762,-500.0,0.000305,5]
[326740727,1715293855772,-4759.82,0.000305,5]
[326740728,1715293855782,-2991.92,0.000305,5]
[326740729,1715293855791,-2310.69,0.000305,5]
[326740730,1715293855802,-9157.79,0.000305,5]
[326740731,1715293855811,-11668.31,0.000305,5]
[326740732,1715293855820,-2492.19,0.000305,5]
[326740733,1715293855829,-4663.6,0.000305,5]
[326740734,1715293855838,-2156.52,0.000305,5]
[326740735,1715293855848,-9574.79,0.000305,5]
[326740736,1715293855858,-3740.02,0.000305,5]
[326740737,1715293855867,-5897.06,0.000305,5]
[326740738,1715293855876,-4425.99,0.000305,5]
[326740739,1715293855885,-3760.22,0.000305,5]
[326740740,1715293855895,-1753.74,0.000305,5]
[326740741,1715293855904,-649.75,0.000305,5]
[326740742,1715293855914,-500.0,0.000305,5]
[326740743,1715293855924,-938.48,0.000305,5]
[326740744,1715293855935,-1614.47,0.000305,5]
[326740745,1715293855944,-3432.65,0.000305,5]
[326740746,1715293855954,-555.71,0.000305,5]
[326740747,1715293855969,-4822.78,0.000305,5]
[326740748,1715293855978,-640.14,0.000305,5]
[326740749,1715293855987,-660.29,0.000305,5]
[326740750,1715293855997,-2336.48,0.000305,5]
[326740751,1715293856007,-500.0,0.000305,5]
[326740752,1715293856017,-743.72,0.000305,5]
[326740753,1715293856027,-2322.71,0.00030501,5]
[326740754,1715293856037,-500.0,0.00030501,5]
[326740755,1715293856048,-666.9,0.00030501,5]
[326740756,1715293856058,-1380.3,0.00030501,5]
[326740757,1715293856067,-1318.35,0.00030501,2]
[326740758,1715293856076,-573.49,0.00030501,5]
[326740759,1715293856086,-500.0,0.00030501,5]
[326740760,1715293856095,-1287.6,0.00030501,5]
[326740761,1715293856105,-522.04687139,0.00030501,5]
[326740762,1715293856114,-1429.91,0.00030501,5]
[326740763,1715293856124,-500.0,0.00030501,5]
[326740764,1715293856133,-2570.93,0.00030501,5]
[326740765,1715293856142,-2902.44,0.00030501,5]
[326740766,1715293856151,-1918.92,0.00030501,5]
[326740767,1715293856160,-503.48257653,0.00030501,5]
[326740768,1715293856169,-1432.19,0.00030501,5]
[326740769,1715293856178,-500.0,0.00030501,5]
[326740770,1715293856187,-1058.21,0.00030501,5]
[326740771,1715293856196,-20000.0,0.00030501,2]
[326740772,1715293856207,-2223.5,0.00030501,5]
[326740773,1715293856216,-2656.28,0.00030501,5]
[326740774,1715293856226,-500.0,0.00030501,5]
[326740775,1715293856235,-1791.98,0.00030501,5]
[326740776,1715293856244,-807.18,0.00030501,5]
[326740777,1715293856254,-441.95708341,0.00030501,5]
[326740778,1715293856263,-835.57,0.00030501,5]
[326740779,1715293856273,-3374.95,0.00030501,5]
[326740780,1715293856282,-500.0,0.00030501,2]
[326740781,1715293856291,-500.0,0.00030501,5]
[326740782,1715293856301,-915.44,0.00030501,5]
[326740783,1715293856310,-500.0,0.00030501,5]
[326740784,1715293856320,-500.0,0.00030501,5]
[326740785,1715293856329,-771.2,0.00030501,5]
[326740786,1715293856340,-500.0,0.00030501,5]
[326740787,1715293856349,-2482.76,0.00030501,5]
[326740788,1715293856360,-3576.03,0.00030501,5]
[326740789,1715293856370,-500.0,0.00030501,5]
[326740790,1715293856379,-1464.98,0.00030501,5]
[326740791,1715293856389,-500.0,0.00030501,5]
[326740792,1715293856399,-545.66,0.00030501,5]
[326740793,1715293856409,-434.93935768,0.00030501,5]
[326740794,1715293856418,-1225.83,0.00030501,5]
[326740795,1715293856427,-2672.39,0.00030501,5]
[326740796,1715293856436,-500.0,0.00030501,5]
[326740797,1715293856445,-500.0,0.00030501,5]
[326740798,1715293856454,-1403.78,0.00030501,5]
[326740799,1715293856463,-500.0,0.00030501,5]
[326740800,1715293856472,-500.0,0.00030501,5]
[326740801,1715293856481,-500.0,0.00030501,5]
[326740802,1715293856490,-1578.76,0.00030501,5]
[326740803,1715293856499,-429.39,0.00030501,5]
[326740804,1715293856508,-662.71,0.00030501,5]
[326740805,1715293856518,-500.0,0.00030501,5]
[326740806,1715293856527,-1677.39,0.00030501,5]
[326740807,1715293856536,-500.0,0.00030501,5]
[326740808,1715293856546,-574.84,0.00030501,5]
[326740809,1715293856555,-808.67,0.00030501,5]
[326740810,1715293856564,-541.81,0.00030501,5]
[326740811,1715293856574,-2920.81,0.00030501,5]
[326740812,1715293856585,-500.0,0.00030501,5]
[326740813,1715293856594,-509.96527651,0.00030501,5]
[326740814,1715293856604,-2196.3,0.00030501,5]
[326740815,1715293856615,-500.0,0.00030501,5]
[326740816,1715293856625,-500.0,0.00030501,5]
[326740817,1715293856636,-905.04,0.00030501,5]
[326740818,1715293856645,-809.54,0.00030501,5]
[326740819,1715293856655,-500.0,0.00030501,5]
[326740820,1715293856665,-3057.03,0.00030501,5]
[326740821,1715293856675,-2013.6,0.00030501,5]
[326740822,1715293856684,-591.29,0.00030501,5]
[326740823,1715293856694,-500.0,0.00030501,5]
[326740824,1715293856704,-2762.92,0.00030501,5]
[326740825,1715293856713,-500.0,0.00030501,5]
[326740826,1715293856723,-2292.66,0.00030501,5]
[326740827,1715293856733,-818.82,0.00030501,5]
[326740828,1715293856742,-3594.74,0.00030501,5]
[326740829,1715293856753,-600.69,0.00030501,5]
[326740830,1715293856762,-4117.26,0.00030501,5]
[326740831,1715293856771,-918.87,0.00030501,5]
[326740832,1715293856780,-439.61436047,0.00030501,5]
[326740833,1715293856789,-4941.9,0.00030501,5]
[326740834,1715293856799,-2336.77,0.00030501,5]
[326740835,1715293856808,-2636.19,0.00030501,5]
[326740836,1715293856818,-2969.29,0.00030501,5]
[326740837,1715293856827,-500.0,0.00030501,5]
[326740838,1715293856837,-500.0,0.00030501,5]
[326740839,1715293856846,-1085.89,0.00030501,5]
[326740840,1715293856855,-3231.86,0.00030501,5]
[326740841,1715293856865,-500.0,0.00030501,5]
[326740842,1715293856874,-1551.56,0.00030501,5]
[326740843,1715293856883,-500.0,0.00030501,5]
[326740844,1715293856892,-500.0,0.00030501,5]
[326740845,1715293856902,-500.0,0.00030501,5]
[326740846,1715293856911,-500.0,0.00030501,5]
[326740847,1715293856920,-447.6483998,0.00030501,5]
[326740848,1715293856929,-328.87716936,0.00030501,5]
[326740849,1715293856938,-843.2,0.00030501,5]
[326740850,1715293856948,-2658.63,0.00030501,5]
[326740851,1715293856960,-520.2473809,0.00030501,5]
[326740852,1715293856975,-631.57,0.00030501,5]
[326740853,1715293856984,-2721.92,0.00030501,5]
[326740854,1715293856994,-500.0,0.00030501,5]
[326740855,1715293857003,-1053.15,0.00030501,5]
[326740856,1715293857014,-500.0,0.00030501,5]
[326740857,1715293857024,-6806.75,0.00030501,5]
[326740858,1715293857033,-500.0,0.00030501,5]
[326740859,1715293857043,-18139.29,0.00030501,5]
[326740860,1715293857055,-898.61,0.00030501,5]
[326740861,1715293857065,-2598.41,0.00030501,5]
[326740862,1715293857075,-2428.11,0.00030501,5]
[326740863,1715293857085,-11836.3,0.00030501,5]
[326740864,1715293857095,-1353.23,0.00030501,5]
[326740865,1715293857105,-840.5,0.00030501,5]
[326740866,1715293857114,-8342.64,0.00030501,5]
[326740867,1715293857123,-3294.07,0.00030501,5]
[326740868,1715293857133,-2637.37,0.00030501,5]
[326740869,1715293857143,-500.0,0.00030501,5]
[326740870,1715293857152,-1053.06,0.00030501,5]
[326740871,1715293857161,-3512.39,0.00030501,5]
[326740872,1715293857170,-869.73,0.00030501,5]
[326740873,1715293857179,-3807.57,0.00030501,5]
[326740874,1715293857189,-44896.3,0.00030501,5]
[326740875,1715293857198,-5936.21,0.00030501,5]
[326740876,1715293857210,-1095.83,0.00030501,5]
[326740877,1715293857219,-1860.31,0.00030501,5]
[326740878,1715293857228,-4252.97,0.00030501,5]
[326740879,1715293857236,-870.98,0.00030501,5]
[326740880,1715293857246,-4198.61,0.00030501,5]
[326740881,1715293857256,-845.0,0.00030501,5]
[326740882,1715293857266,-23875.49,0.00030501,5]
[326740883,1715293857275,-11937.54,0.00030501,5]
[326740884,1715293857285,-1337.6,0.00030501,5]
[326740885,1715293857294,-733.15,0.00030501,5]
[326740886,1715293857304,-20023.62,0.00030501,5]
[326740887,1715293857313,-500.0,0.00030501,5]
[326740888,1715293857323,-2849.96,0.00030501,5]
[326740889,1715293857333,-3990.23,0.00030501,5]
[326740890,1715293857343,-50119.49,0.00030501,5]
[326740891,1715293857352,-500.0,0.00030501,5]
[326740892,1715293857363,-3062.77,0.00030501,5]
[326740893,1715293857373,-2036.78,0.00030501,5]
[326740894,1715293857383,-500.0,0.00030501,5]
[326740895,1715293857393,-2905.36,0.00030501,5]
[326740896,1715293857403,-2700.8,0.00030501,5]
[326740897,1715293857413,-500.0,0.00030501,5]
[326740898,1715293857423,-2104.18,0.00030501,5]
[326740899,1715293857433,-4149.04,0.00030501,5]
[326740900,1715293857443,-1963.79,0.00030501,5]
[326740901,1715293857453,-3390.72,0.00030501,5]
[326740902,1715293857464,-500.0,0.00030501,5]
[326740903,1715293857474,-2319.31,0.00030501,5]
[326740904,1715293857484,-1904.08,0.00030501,5]
[326740905,1715293857493,-1518.85,0.00030501,5]
[326740906,1715293857503,-6300.79,0.00030501,5]
[326740907,1715293857514,-500.0,0.00030501,5]
[326740908,1715293857523,-500.0,0.00030501,5]
[326740909,1715293857533,-5553.25,0.00030501,5]
[326740910,1715293857542,-3658.49,0.00030501,5]
[326740911,1715293857552,-1083.01,0.00030501,5]
[326740912,1715293857562,-587.98,0.00030501,5]
[326740913,1715293857571,-1356.37,0.00030501,5]
[326740914,1715293857581,-3872.5,0.00030501,5]
[326740915,1715293857590,-3011.56,0.00030501,5]
[326740916,1715293857600,-601.6,0.00030501,5]
[326740917,1715293857610,-2970.58,0.00030501,5]
[326740918,1715293857619,-500.0,0.00030501,5]
[326740919,1715293857629,-986.3,0.00030501,5]
[326740920,1715293857638,-6324.58,0.00030501,5]
[326740921,1715293857648,-4309.69,0.00030501,5]
[326740922,1715293857658,-500.0,0.00030501,5]
[326740923,1715293857668,-1753.92,0.00030501,5]
[326740924,1715293857677,-1006.52,0.00030502,5]
[326740925,1715293857687,-500.0,0.00030502,5]
[326740926,1715293857696,-545.04,0.00030502,5]
[326740927,1715293857706,-500.0,0.00030502,5]
[326740928,1715293857715,-616.38,0.00030502,5]
[326740929,1715293857725,-500.0,0.00030502,5]
[326740930,1715293857735,-500.0,0.00030502,5]
[326740931,1715293857745,-959.35,0.00030502,5]
[326740932,1715293857755,-500.0,0.00030502,5]
[326740933,1715293857766,-500.0,0.00030502,5]
[326740934,1715293857776,-500.0,0.00030502,5]
[326740935,1715293857786,-500.0,0.00030502,5]
[326740936,1715293857796,-791.65,0.00030502,5]
[326740937,1715293857806,-500.0,0.00030502,5]
[326740938,1715293857816,-842.78,0.00030502,5]
[326740939,1715293857825,-1043.11,0.00030502,5]
[326740940,1715293857835,-500.0,0.00030502,5]
[326740941,1715293857844,-574.442238,0.00030502,5]
[326740942,1715293857855,-665.22,0.00030502,5]
[326740943,1715293857865,-500.0,0.00030502,5]
[326740944,1715293857875,-500.0,0.00030502,5]
[326740945,1715293857885,-500.0,0.00030502,5]
[326740946,1715293857895,-619.87,0.00030502,5]
[326740947,1715293857905,-500.0,0.00030502,5]
[326740948,1715293857915,-858.83,0.00030502,5]
[326740949,1715293857924,-500.0,0.00030502,5]
[326740950,1715293857934,-500.0,0.00030502,5]
[326740951,1715293857944,-645.54,0.00030502,5]
[326740952,1715293857955,-383.98079984,0.00030502,5]
[326740953,1715293857968,-500.0,0.00030502,5]
[326740954,1715293857978,-500.0,0.00030502,5]
[326740955,1715293857987,-500.0,0.00030502,5]
[326740956,1715293857997,-500.0,0.00030502,5]
[326740957,1715293858009,-500.0,0.00030502,5]
[326740958,1715293858023,-500.0,0.00030502,5]
[326740959,1715293858033,-500.0,0.00030502,5]
[326740960,1715293858044,-500.0,0.00030502,5]
[326740961,1715293858054,-500.0,0.00030502,5]
[326740962,1715293858065,-500.0,0.00030502,5]
[326740963,1715293858074,-964.36,0.00030502,5]
[326740964,1715293858084,-500.0,0.00030502,5]
[326740965,1715293858093,-918.94,0.00030502,5]
[326740966,1715293858103,-500.0,0.00030502,5]
[326740967,1715293858113,-500.0,0.00030502,5]
[326740968,1715293858123,-500.0,0.00030502,5]
[326740969,1715293858133,-922.8,0.00030502,5]
[326740970,1715293858142,-624.79,0.00030502,5]
[326740971,1715293858153,-500.0,0.00030502,5]
[326740972,1715293858162,-500.0,0.00030502,5]
[326740973,1715293858172,-500.0,0.00030502,5]
[326740974,1715293858182,-500.0,0.00030502,5]
[326740975,1715293858191,-500.0,0.00030502,5]
[326740976,1715293858201,-500.0,0.00030502,5]
[326740977,1715293858212,-735.06,0.00030502,5]
[326740978,1715293858222,-500.0,0.00030502,5]
[326740979,1715293858232,-500.0,0.00030502,5]
[326740980,1715293858242,-500.0,0.00030502,5]
[326740981,1715293858253,-500.0,0.00030502,5]
[326740982,1715293858262,-500.0,0.00030502,5]
[326740983,1715293858274,-710.6,0.00030502,5]
[326740984,1715293858285,-500.0,0.00030502,5]
[326740985,1715293858295,-500.0,0.00030502,5]
[326740986,1715293858306,-500.0,0.00030502,5]
[326740987,1715293858317,-500.0,0.00030502,5]
[326740988,1715293858327,-762.36,0.00030502,5]
[326740989,1715293858338,-500.0,0.00030502,5]
[326740990,1715293858349,-944.66,0.00030502,5]
[326740991,1715293858360,-989.38,0.00030502,5]
[326740992,1715293858371,-500.0,0.00030502,5]
[326740993,1715293858383,-500.0,0.00030502,5]
[326740994,1715293858394,-500.0,0.00030502,5]
[326740995,1715293858405,-500.0,0.00030502,5]
[326740996,1715293858416,-500.0,0.00030502,5]
[326740997,1715293858427,-500.0,0.00030502,5]
[326740998,1715293858437,-500.0,0.00030502,5]
[326740999,1715293858447,-500.0,0.00030502,5]
[326741000,1715293858458,-500.0,0.00030502,2]
[326741001,1715293858467,-500.0,0.00030502,5]
[326741002,1715293858477,-500.0,0.00030502,5]
[326741003,1715293858488,-500.0,0.00030502,5]
[326741004,1715293858500,-500.0,0.00030502,5]
[326741005,1715293858511,-591.91,0.00030502,5]
[326741006,1715293858522,-500.0,0.00030502,5]
[326741007,1715293858533,-899.59,0.00030502,5]
[326741008,1715293858544,-500.0,0.00030502,5]
[326741009,1715293858554,-500.0,0.00030502,5]
[326741010,1715293858565,-500.0,0.00030502,5]
[326741011,1715293858575,-500.0,0.00030502,5]
[326741012,1715293858584,-500.0,0.00030502,5]
[326741013,1715293858594,-500.0,0.00030502,5]
[326741014,1715293858603,-670.93,0.00030502,5]
[326741015,1715293858613,-500.0,0.00030502,5]
[326741016,1715293858622,-686.36,0.00030502,5]
[326741017,1715293858632,-500.0,0.00030502,5]
[326741018,1715293858641,-1902.14,0.00030502,5]
[326741019,1715293858651,-500.0,0.00030502,5]
[326741020,1715293858661,-557.99,0.00030502,5]
[326741021,1715293858671,-214.87585364,0.00030502,5]
[326741022,1715293858681,-500.0,0.00030502,5]
[326741023,1715293858691,-1003.78,0.00030502,5]
[326741024,1715293858701,-490.00205719,0.00030502,5]
[326741025,1715293858711,-500.0,0.00030502,5]
[326741026,1715293858721,-500.0,0.00030502,5]
[326741027,1715293858731,-500.0,0.00030502,5]
[326741028,1715293858741,-500.0,0.00030502,5]
[326741029,1715293858751,-536.78503012,0.00030502,5]
[326741030,1715293858761,-1191.99,0.00030502,5]
[326741031,1715293858771,-1067.64,0.00030502,5]
[326741032,1715293858780,-336.64,0.00030502,5]
[326741033,1715293858790,-541.14,0.00030502,5]
[326741034,1715293858800,-500.0,0.00030502,5]
[326741035,1715293858809,-500.0,0.00030502,5]
[326741036,1715293858820,-513.29,0.00030502,5]
[326741037,1715293858829,-500.0,0.00030502,5]
[326741038,1715293858840,-500.0,0.00030502,5]
[326741039,1715293858850,-500.0,0.00030502,5]
[326741040,1715293858859,-500.0,0.00030502,5]
[326741041,1715293858869,-500.0,0.00030502,5]
[326741042,1715293858880,-598.93,0.00030502,5]
[326741043,1715293858890,-500.0,0.00030502,5]
[326741044,1715293858900,-500.0,0.00030502,5]
[326741045,1715293858910,-1008.24,0.00030502,5]
[326741046,1715293858919,-500.0,0.00030502,5]
[326741047,1715293858928,-500.0,0.00030502,5]
[326741048,1715293858938,-500.0,0.00030502,5]
[326741049,1715293858947,-500.0,0.00030502,5]
[326741050,1715293858958,-519.5,0.00030502,5]
[326741051,1715293858973,-500.0,0.00030502,5]
[326741052,1715293858983,-500.0,0.00030502,5]
[326741053,1715293858993,-500.0,0.00030502,5]
[326741054,1715293859004,-500.0,0.00030502,5]
[326741055,1715293859014,-500.0,0.00030502,2]
[326741056,1715293859023,-500.0,0.00030502,5]
[326741057,1715293859033,-512.66,0.00030502,5]
[326741058,1715293859044,-500.0,0.00030502,5]
[326741059,1715293859055,-752.85,0.00030502,5]
[326741060,1715293859065,-500.0,0.00030502,5]
[326741061,1715293859075,-500.0,0.00030502,5]
[326741062,1715293859084,-500.0,0.00030502,5]
[326741063,1715293859094,-500.0,0.00030502,5]
[326741064,1715293859104,-739.17,0.00030502,5]
[326741065,1715293859114,-500.0,0.00030502,5]
[326741066,1715293859123,-719.98,0.00030502,5]
[326741067,1715293859133,-500.0,0.00030502,5]
[326741068,1715293859143,-500.0,0.00030502,5]
[326741069,1715293859153,-500.0,0.00030502,5]
[326741070,1715293859163,-500.0,0.00030502,5]
[326741071,1715293859172,-500.0,0.00030502,5]
[326741072,1715293859182,-595.22,0.00030502,5]
[326741073,1715293859191,-500.0,0.00030502,5]
[326741074,1715293859200,-500.0,0.00030502,5]
[326741075,1715293859210,-500.0,0.00030502,5]
[326741076,1715293859220,-896.4,0.00030502,5]
[326741077,1715293859229,-500.0,0.00030502,5]
[326741078,1715293859239,-151.0,0.00030502,7]
[326741079,1715293859249,-522.76,0.00030502,5]
[326741080,1715293859258,-588.27725419,0.00030502,5]
[326741081,1715293859268,-151.0,0.00030502,7]
[326741082,1715293859277,-500.0,0.00030502,5]
[326741083,1715293859288,-500.0,0.00030502,5]
[326741084,1715293859297,-151.0,0.00030502,7]
[326741085,1715293859307,-151.0,0.00030502,7]
[326741086,1715293859316,-151.0,0.00030502,7]
[326741087,1715293859326,-285.71781283,0.00030502,5]
[326741088,1715293859335,-500.0,0.00030502,5]
[326741089,1715293859345,-500.0,0.00030502,5]
[326741090,1715293859355,-500.0,0.00030502,5]
[326741091,1715293859365,-514.14,0.00030502,5]
[326741092,1715293859375,-151.0,0.00030502,7]
[326741093,1715293859384,-500.0,0.00030502,5]
[326741094,1715293859394,-501.82692575,0.00030502,5]
[326741095,1715293859403,-500.0,0.00030502,5]
[326741096,1715293859413,-1238.88,0.00030502,5]
[326741097,1715293859422,-151.0,0.00030502,7]
[326741098,1715293859433,-500.0,0.00030502,5]
[326741099,1715293859442,-1125.05,0.00030502,5]
[326741100,1715293859452,-500.0,0.00030502,5]
[326741101,1715293859462,-255.08,0.00030502,7]
[326741102,1715293859472,-500.0,0.00030502,5]
[326741103,1715293859481,-500.0,0.00030502,5]
[326741104,1715293859490,-151.852549,0.00030502,7]
[326741105,1715293859499,-500.0,0.00030502,5]
[326741106,1715293859508,-151.0,0.00030502,7]
[326741107,1715293859518,-151.0,0.00030502,7]
[326741108,1715293859527,-500.0,0.00030502,5]
[326741109,1715293859536,-500.0,0.00030502,5]
[326741110,1715293859545,-151.0,0.00030502,7]